Cogmind - Beta 13 @@@ ROGUE MODE // 2024.06.10 @ 17:15:20 Player: Gilly Result: Destroyed by G-34 Mercenary with Small Laser Performance ------------- Evolutions (1) 500 Regions Visited (3) 600 Robots Destroyed (17) 85 Value Destroyed (455) 455 Prototype IDs (4) 80 Alien Tech Used (0) 0 Bonus (0) 0 TOTAL SCORE: 1720 Bonus ------- None Cogmind --------- Core Integrity 0/400 Matter 275/300 Energy 18/100 System Corruption 0% Temperature Cool (6) Movement Core (150) Ox2 Location -9/Materials Parts ------- > --- POWER (2) -------- (None) > --- PROPULSION (3) --- (None) > --- UTILITY (2) ------ Sensor Array Improved Light Armor Plating > --- WEAPON (2) ------- Rocket Launcher > --- INVENTORY (5) ---- Terrain Scan Processor Improved Light Armor Plating Peak State ------------ > --- POWER ------------ Ion Engine > --- PROPULSION ------- Aluminum Leg > --- UTILITY ---------- Sensor Array Improved Light Armor Plating > --- WEAPON ----------- Katana > --- INVENTORY -------- Terrain Scan Processor Improved Light Armor Plating Improved EM Shotgun Rocket Launcher [Rating: 10] Favorites ----------- Power Ion Engine Engine Ion Engine Propulsion Flight Unit Leg Aluminum Leg Wheel Wheel Flight Unit Flight Unit Utility Sensor Array Device Sensor Array Storage Huge Storage Unit Protection Light Armor Plating Weapon Katana Energy Gun Particle Gun Ballistic Gun Light Assault Rifle Launcher Rocket Launcher Slashing Weapon Katana Build | -11 -10 -10 -9 ------- Run | Yrd Mat Min Mat Slots Evolved 2 | . . . 2 Power 1 | . . . 1 Propulsion 1 | . . . 1 Utility . | . . . . Weapon . | . . . . Parts Attached 37 | 6 10 2 19 Power 5 | 1 1 . 3 Engine 5 | 1 1 . 3 Core . | . . . . Reactor . | . . . . Propulsion 10 | 2 3 . 5 Treads . | . . . . Leg 1 | . . . 1 Wheel 2 | 2 . . . Hover . | . . . . Flight 7 | . 3 . 4 Utility 8 | 1 3 1 3 Device 1 | . . 1 . Storage 2 | 1 1 . . Processor . | . . . . Hackware . | . . . . Protection 5 | . 2 . 3 Artifact . | . . . . Weapon 14 | 2 3 1 8 Energy Gun 8 | . 3 . 5 Energy Cannon . | . . . . Ballistic Gun 2 | 2 . . . Ballistic Cannon . | . . . . Launcher 3 | . . 1 2 Special Weapon . | . . . . Impact Weapon . | . . . . Slashing Weapon 1 | . . . 1 Piercing Weapon . | . . . . Special Melee Weapon . | . . . . Unidentified Prototypes 1 | . . . 1 Parts Lost 12 | . . . 12 Power 2 | . . . 2 Propulsion 7 | . . . 7 Utility 1 | . . . 1 Weapon 2 | . . . 2 Highest Loss Streak 5 | . . . 5 To Critical Strikes . | . . . . Average Slot Usage (%) 60 | . 74 62 52 Engine 12 | . 14 14 10 Leg 2 | . . . 4 Wheel 5 | . 18 . . Flight 10 | . 10 28 5 Device 6 | . . 5 11 Storage 2 | . 9 . . Protection 9 | . 4 14 10 Energy Gun 3 | . 5 . 2 Ballistic Gun 3 | . 12 . . Slashing Weapon 4 | . . . 8 Naked Turns . | . . . . Heaviest Build 91 | 13 91 7 15 Greatest Support 20 | 20 20 8 12 Greatest Overweight (x) 4 | 4 4 . 2 Average Overweight (x) . | 1 1 . . Largest Inventory Capacity 25 | 8 25 5 5 Average Capacity 8 | 6 16 5 5 Most Carried 7 | 3 7 5 5 Average Carried 3 | 1 3 4 3 Final Capacity 8 | 8 5 5 5 Final Carried 5 | 2 5 5 2 Class Distribution -------------------- 100% | Mutant Dominant Class ---------------- Mutant | -10/Materials Mutant | -10/Mines Mutant | -9/Materials Resources | -11 -10 -10 -9 ----------- Run | Yrd Mat Min Mat Matter Collected 538 | 241 103 36 158 Remotely . | . . . . Salvage Created 535 | . 138 . 397 Parts 38 | . 11 . 27 Haulers Intercepted . | . . . . Recyclers Shooed 1 | . . . 1 Parts Field Recycled . | . . . . Retrieved Matter . | . . . . Parts Self-Destructed . | . . . . Prevented . | . . . . Kills | -11 -10 -10 -9 ------- Run | Yrd Mat Min Mat Combat Hostiles Destroyed 17 | . 6 . 11 Melee 3 | . . . 3 Guns 12 | . 6 . 6 AOE 2 | . . . 2 Classes Destroyed 4 | . 2 . 2 Swarmer 7 | . 3 . 4 Grunt 7 | . 3 . 4 Duelist 1 | . . . 1 Sentry 2 | . . . 2 Best Kill Streak 4 | . 3 . 4 Combat Bots Only 4 | . 3 . 4 Max Kills in Single Turn 1 | . 1 . 1 Gunslinging . | . . . . Exploded 1 | . . . 1 Melee 1 | . . . 1 Uniques/NPCs Destroyed . | . . . . Combat | -11 -10 -10 -9 -------- Run | Yrd Mat Min Mat Hostile Shots Fired 163 | . 28 . 135 Missed 43 | . 7 . 36 Damage Taken 1406 | . 210 . 1196 Core 453 | . 50 . 403 Absorbed by Shields . | . . . . Redirected to Shielding 16 | . . . 16 Core Remaining (%) 90 | 100 . 80 . Volleys Fired 39 | . 16 . 23 Largest 2 | . 2 . 1 Hottest 130 | . 130 . 65 Shots Fired 55 | . 32 . 23 Gun 55 | . 32 . 23 Cannon . | . . . . Launcher . | . . . . Special . | . . . . Kinetic 24 | . 24 . . Thermal 15 | . 8 . 7 Explosive . | . . . . Electromagnetic 16 | . . . 16 Robot Hit Streak 10 | . 10 . 6 Robot Miss Streak 3 | . 3 . 3 Penetration Max . | . . . . Secondary Targets 1 | . 1 . . Max Gunslinging Chain 1 | . 1 . . Shots Hit Robots 49 | . 20 . 29 Core Hits 27 | . 11 . 16 Critical Kills . | . . . . Critical Parts Destroyed . | . . . . Critical Strikes 2 | . . . 2 Sever 2 | . . . 2 Melee Attacks 14 | . . . 14 Impact . | . . . . Slashing 14 | . . . 14 Piercing . | . . . . Sneak Attacks . | . . . . Combat Hostiles . | . . . . Follow-up Attacks . | . . . . Damage Inflicted 1088 | . 220 . 868 Guns 535 | . 220 . 315 Cannons . | . . . . Explosions 256 | . . . 256 Melee 297 | . . . 297 Ramming . | . . . . Kinetic 175 | . 175 . . Thermal 381 | . 45 . 336 Explosive . | . . . . Electromagnetic 235 | . . . 235 Impact . | . . . . Slashing 297 | . . . 297 Piercing . | . . . . Highest Corruption . | . . . . Average Corruption . | . . . . Corruption Purged . | . . . . Corruption Blocked . | . . . . Overload Shots . | . . . . Overflow Damage 12 | . . . 12 Projectiles . | . . . . Explosions 10 | . . . 10 Melee 2 | . . . 2 Knockbacks . | . . . . Impact . | . . . . Kinetic . | . . . . Secondary . | . . . . Self-Inflicted Damage 75 | . . . 75 Shots 2 | . . . 2 Rammed . | . . . . Targets Rammed . | . . . . Kicked . | . . . . Crushed . | . . . . Highest Temperature 276 | . 276 . 201 Average Temperature 94 | . 94 . 93 Received Heat Transfer 480 | . 78 . 402 Siege Activations . | . . . . Robots Corrupted . | . . . . Combat Hostiles . | . . . . Parts Fried . | . . . . Impact Corruptions . | . . . . Robots Melted . | . . . . Combat Hostiles . | . . . . Parts Melted . | . . . . Heat Transferred 646 | . 111 . 535 Parts Sabotaged . | . . . . Parts Stolen . | . . . . Parts Stripped . | . . . . Power Chain Reactions 3 | . . . 3 Alert | -11 -10 -10 -9 ------- Run | Yrd Mat Min Mat Peak Influence 213 | . 191 74 213 Initial 74 | . . 74 28 Average 104 | . 118 74 117 Maximum Alert Level 1 | . . . 1 Low Security (%) 92 | 100 100 100 85 Level 1 7 | . . . 14 Level 2 . | . . . . Level 3 . | . . . . Level 4 . | . . . . Level 5 . | . . . . High Security . | . . . . Max Security . | . . . . Squads Dispatched 3 | . 2 . 1 Investigation 2 | . 1 . 1 Extermination . | . . . . Reinforcement 1 | . 1 . . Assault . | . . . . Garrison . | . . . . Intercept . | . . . . Searches Triggered . | . . . . Construction Impeded . | . . . . Haulers Reinforced . | . . . . Active Scanning Responses . | . . . . Cargo Convoy Interrupts . | . . . . Stealth | -11 -10 -10 -9 --------- Run | Yrd Mat Min Mat Distress Signals 1 | . . . 1 Communications Jammed . | . . . . Distress Signals . | . . . . Times Spotted 28 | . 12 . 16 Peak Tracking Total 5 | . 5 . 4 Tactical Retreats 1 | . . . 1 Traps | -11 -10 -10 -9 ------- Run | Yrd Mat Min Mat Traps Triggered 2 | . 1 . 1 Indirectly . | . . . . Trap Hack Attempts . | . . . . Triggered . | . . . . Disarmed . | . . . . Reprogrammed . | . . . . Reused . | . . . . Traps Extracted . | . . . . Installed . | . . . . Triggered . | . . . . Machines | -11 -10 -10 -9 ---------- Run | Yrd Mat Min Mat Machines Disabled 1 | . . . 1 Max in Single Turn 1 | . . . 1 Machines Repaired . | . . . . Machines Dismantled . | . . . . Machines Sabotaged . | . . . . Overloaded Fab Kills . | . . . . Hacking | -11 -10 -10 -9 --------- Run | Yrd Mat Min Mat Machines Accessed 4 | . 3 . 1 Terminals 3 | . 2 . 1 Fabricators . | . . . . Repair Stations . | . . . . Recycling Units 1 | . 1 . . Scanalyzers . | . . . . Garrison Access . | . . . . Total Hacks 12 | . 9 . 3 Successful 5 | . 4 . 1 Failed 7 | . 5 . 2 Catastrophic 1 | . . . 1 Database Lockouts . | . . . . Manual . | . . . . Terminals 7 | . 4 . 3 Fabricators . | . . . . Repair Stations . | . . . . Recycling Units 5 | . 5 . . Scanalyzers . | . . . . Garrison Access . | . . . . Terminal Hacks 4 | . 3 . 1 Record 1 | . 1 . . Prototype ID Bank 2 | . 1 . 1 Zone Layout 1 | . 1 . . Fabricator Hacks . | . . . . Repair Station Hacks . | . . . . Recycling Unit Hacks 1 | . 1 . . Retrieve Components 1 | . 1 . . Scanalyzer . | . . . . Garrison Access Hacks . | . . . . Unauthorized Hacks . | . . . . Terminals . | . . . . Fabricators . | . . . . Repair Stations . | . . . . Recycling Units . | . . . . Scanalyzers . | . . . . Garrison Access . | . . . . Data Cores Recovered . | . . . . Used . | . . . . Hacking Detections 3 | . 2 . 1 Full Trace Events . | . . . . Feedback Events . | . . . . Feedback Blocked . | . . . . Robot Schematics Acquired . | . . . . Robots Built . | . . . . Authchips . | . . . . Time . | . . . . Total Robot Build Rating . | . . . . Part Schematics Acquired . | . . . . Parts Built . | . . . . Authchips . | . . . . Time . | . . . . Total Part Build Rating . | . . . . Parts Repaired . | . . . . Time . | . . . . Parts Recycled . | . . . . Recycled Matter . | . . . . Retrieved Matter . | . . . . Retrieved Components . | . . . . Parts Scanalyzed . | . . . . Part Schematics Acquired . | . . . . Parts Damaged . | . . . . Bothacking | -11 -10 -10 -9 ------------ Run | Yrd Mat Min Mat Used RIF Installer . | . . . . Robots Hacked . | . . . . Non-combat . | . . . . Combat . | . . . . Robot Hacks Applied . | . . . . Relay Couplers Released . | . . . . Fabnet Peak Effective % . | . . . . Robots Rewired . | . . . . Allies Hacked . | . . . . Hacks Repelled . | . . . . Allies | -11 -10 -10 -9 -------- Run | Yrd Mat Min Mat Total Allies . | . . . . Largest Group . | . . . . Highest-Rated Group . | . . . . Highest-Rated Ally . | . . . . Total Orders . | . . . . Ally Attacks . | . . . . Total Damage . | . . . . Kills . | . . . . Allies Corrupted . | . . . . Allies Melted . | . . . . Intel | -11 -10 -10 -9 ------- Run | Yrd Mat Min Mat Robot Analysis Total . | . . . . Derelict Logs Recovered 1 | . . 1 . Drone Launches . | . . . . Drone Recoveries . | . . . . Exploration | -11 -10 -10 -9 ------------- Run | Yrd Mat Min Mat Turns Passed 1021 | 56 278 169 518 Spaces Moved 1026 | 33 252 445 296 Core 111 | 16 . . 95 Treads . | . . . . Legs 108 | . . . 108 Wheels 103 | 17 86 . . Hover . | . . . . Flight 704 | . 166 445 93 Fastest Speed 34 | 50 37 37 34 Average Speed 73 | 127 68 37 126 Slowest Speed 250 | 250 140 37 200 Overloaded Moves . | . . . . Propulsion Burnouts . | . . . . Robots Hopped 2 | . 1 1 . Cave-ins Triggered . | . . . . Exploration Rate (%) 39 | 3 49 83 21 Regions Visited 3 Branch Regions 1 Pre-discovered Areas . | . . . . Known Exits Taken . | . . . . Unknown Exits Taken 3 | 1 1 1 . Scrap Searched 2 | . . 2 . Spaces Dug . | . . . . Terrain Destroyed 10 | . . . 10 Melee . | . . . . Projectile . | . . . . AOE 10 | . . . 10 Terrain Rammed . | . . . . Walls Destroyed . | . . . . Machines Disabled . | . . . . Actions | -11 -10 -10 -9 --------- Run | Yrd Mat Min Mat Total 1218 | 46 328 447 397 Wait 56 | . 28 . 28 Move 1019 | 32 249 442 296 Hop 2 | . 1 1 . Pick Up 28 | 8 10 . 10 Fast Attach 5 | . 2 2 1 Attach 21 | 6 1 . 14 Detach 6 | . 2 1 3 Swap 11 | . 7 . 4 Drop 17 | . 12 1 4 Fire 39 | . 16 . 23 Melee 14 | . . . 14 Ram . | . . . . Kick . | . . . . Crush . | . . . . Escape Stasis . | . . . . Rewire . | . . . . Trap . | . . . . Miscellaneous . | . . . . Route ------- -11/Scrapyard -10/Materials (discovered 2 exits: *Mat / [*Min]) -10/Mines (discovered 2 exits: *Mat x2) -9/Materials (discovered 1 exit: *Min) History --------- Turn | Location | Event 45 | -11/Scrapyard | Discovered new exit (range 15) 57 | -11/Scrapyard | Entered Materials 155 | -10/Materials | Discovered new exit (range 15) 301 | -10/Materials | Build established: Mutant 308 | -10/Materials | Discovered new exit (range 16) 335 | -10/Materials | Entered Mines 342 | -10/Mines | Discovered new exit (range 11) 391 | -10/Mines | Received a Rocket Launcher from a helpful Derelict 427 | -10/Mines | Discovered new exit (range 5) 504 | -10/Mines | Entered Materials 504 | -9/Materials | Evolved 2 slots: Power x1, Propulsion x1 505 | -9/Materials | Identified exit to Mines 602 | -9/Materials | Lost 3 parts (3n) 654 | -9/Materials | Lost 5 parts (1p3n1u) 976 | -9/Materials | Core integrity fell below 50% 1000 | -9/Materials | Core integrity fell below 20% 1022 | -9/Materials | Destroyed by G-34 Mercenary with Small Laser Last Messages --------------- Acquired 10 matter. K-01 Serf collects debris. Acquired Imp. Light Armor Plating. Dropped Core Shielding. Acquired Imp. Light Armor Plating. K-01 Serf collects debris. K-01 Serf cleans the Terminal. Triggered Alarm Trap. An alarm sounds. ALERT: Alarm triggered, dispatching investigation squad. K-01 Serf cleans the Terminal. Ion Engine destroyed. Aluminum Leg destroyed. Y-45 Defender Imp. Ion Engine severed. Destroyed Heat Sink. Y-45 Defender destroyed. Katana destroyed. G-34 Mercenary destroyed. Imp. EM Shotgun destroyed. Map ----- +----------------------------------------------------+ | ?????????????????????????????????????????????????? | | ?????????????????????????????????????????????????? | | ?????????????????????????????????????????????????? | | ?????????????????????????????????????????????????? | | ?????????????????????????????????????????????????? | | ?????????????????????????????????????????????????? | | ?????????????????????????????????????????????????? | | ?????????????????????????????????????????????????? | | ?????????????????????????????????????????????????? | | ?????????????????????????????????????????????????? | | ?????????????????????????????????????????????????? | | ?????????????????????????????????????????????????? | | ?????????????????????????????????????????????????? | | ?????????????????????????????????????????????????? | | ?????????????????????????????????????????????????? | | ??#######????????????????????????????????????????? | | ?? ?????????????????????????????????????????? | | ?? ??????????????????????????????????????????? | | ?? ???????????????????????????????????????????? | | ?? #???????????????????????????????????????????? | | ?? #???????????????????????????????????????????? | | ?? #???????????????????????????????????????????? | | ## #??????? ????????#######????????????????????? | | #??????+ ####### !#????????????????????? | | #??????# #????????????????????? | | #??????# [@ #????????????????????? | | #+#####?????# ^^ =%[ #????????????????????? | | #?????#######+### ! #????????????????????? | | #???????????????##!%[##????????????????????? | | #????????????????#g=g#?????????????????????? | | "T" #????????????????# #?????????????????????? | | #????????????????# #?????????????????????? | | +##########????????????#a #?????????????????????? | | # #????????????# #?????????????????????? | | # """ #????????????# #?????????????????????? | | # "T" #????????????# #?????????????????????? | | # #????????????# #?????????????????????? | | # #????????????# #?????????????????????? | | # """ ] #????????????# #?????????????????????? | | # """ ##???????????# #?????????????????????? | | # """ #???????????# #?????????????????????? | | # [#???????????## ##????????????????????? | | #####+################ ###+####?????????????? | | #?????????????? | | T #?????????????? | | #?????????????? | | ########+########### #### #?????????????? | | ## #????????#######???? #?????????????? | | # ! #???????????????????? ????????????? | | #! #????????????????????? ??????????? | +----------------------------------------------------+ Best States ------------- Heat Dissipation 28 Energy Generation 15 Energy Capacity 275 Matter Stores 300 Matter Capacity 300 Sight Range 16 Robot Scan Range 14 Terrain Scan Density 10 Armor Coverage 150 Core Shielding 20 Utility Shielding 33 Evasion (%) 63 Item Schematics ----------------- None Robot Schematics ------------------ None Fabricated ------------ Nothing Alien Tech Used ----------------- None Achievements -------------- None Challenges ------------ None Game ------ Seed ElectronBombCycler Manual? 0 Play Time 00:16:47 Cumulative 4.2 hours Start 2024.06.10 @ 16:58:41 End 2024.06.10 @ 17:15:20 Sessions 1 Manual Loads 0 Difficulty Rogue Special Mode None Game No. 9 Rogue 9 Adventurer 0 Explorer 0 Win Type - Total 0 Types 0/0/0/0/0/0/0/0/0 Lore% 1 Gallery% 12 Achievement% 8 Wizard Run 0 Options --------- Layout 1 ASCII 0 Keyboard 0 Movement Mouse Keybinds 0 Fullscreen 1 Font 32/SmallcapsGlow Map View 50x35 Zoom Use 0% Tactical HUD 0 Map Filters NONE Filters NONE Steam 1 RUN: 771555e0-a385-453c-bd17-3baba7dfd8b7